[Event "SixDays Budapest March GM A 2025"]
[Site "Budapest"]
[Date "2025.03.26"]
[Round "4.5"]
[White "Uskov, Artem"]
[Black "Jake Shanty"]
[Result "1-0"]
[Annotator "TA"]
[ECO "D78"]
[WhiteElo "2461"]
[BlackElo "2336"]
[PlyCount "97"]
[EventDate "2025.03.23"]
[EventCountry "HUN"]
[SourceTitle "playchess.com"]
[Source "ChessBase"]
[SourceQuality "1"]
[TimeControl "5400+30"]

{[%evp 15,96,-34,-16,-11,-12,0,0,-43,-16,-60,-61,-52,0,0,-7,-9,-10,-7,-11,0,0,0,-11,-27,-22,-22,-18,-40,0,-45,-46,-85,-91,-97,-97,-118,89,80,66,100,89,87,91,68,62,64,60,82,71,40,43,43,40,42,61,47,65,24,136,64,64,63,149,170,160,156,197,108,99,91,82,33,22,22,40,8,29993,46,29994,29995,29995,29996,29999]} 1. Nf3 {[%emt 0:15:06]} Nf6 {[%emt 0:01:03]} 2. g3 {[%emt 0:00:06]} g6 {[%emt 0:01:13]} 3. Bg2 {[%emt 0:00:09]} Bg7 {[%emt 0:00:22]} 4. O-O {[%emt 0:00:07]} O-O {[%emt 0:00:56]} 5. d4 {[%emt 0:00:15]} d5 {[%emt 0:00:55]} 6. c4 {[%emt 0:00:06]} c6 {[%emt 0:00:25]} 7. Nc3 {[%emt 0:00:06]} dxc4 {[%emt 0:05:20]} 8. e4 $1 {[%emt 0:00:15][%mdl 4] is recently more successful than 8.Ne5.} b5 {[%emt 0:04:49]} 9. Qe2 {[%emt 0:00:13] D78: Fianchetto Grünfeld: 6 0-0 c6.} Bb7 {[%emt 0:13:30]} 10. e5 {[%emt 0:09:07]} Nd5 {[%emt 0:01:55]} 11. Ne4 {[%emt 0:00:29] The position is equal.} Na6 {[%emt 0:05:09][%cal Bb8a6,Ba6b4,Bb4d3][%mdl 32]} 12. h4 {[%emt 0:06:27][%cal Bh2h4,Bh4h5,Bh5h6][%mdl 32] White sacrificed a pawn} Bc8 {[%emt 0:21:46]} 13. h5 {[%emt 0:05:51]} Nab4 $146 {[%emt 0:03:54]} (13... Bg4 14. h6 Bh8 15. Bd2 Nac7 16. Nc5 Qc8 17. Qe1 Ne6 18. Nxe6 Bxe6 19. Ng5 Bf5 {1-0 Fressinet,L (2630)-Samadov,R (2469) ChessKid Cup Play In blitz 2023 (9)}) 14. h6 {[%emt 0:01:16]} Bh8 {[%emt 0:00:09]} 15. b3 {[%emt 0:06:19]} Nd3 {[%emt 0:04:03]} 16. Ne1 $132 {[%emt 0:03:49][%mdl 2048] White is not keeping still} N5b4 {[%emt 0:10:17]} 17. Be3 {[%emt 0:01:33]} Be6 {[%emt 0:01:23]} 18. a3 {[%emt 0:03:39]} Nxe1 {[%emt 0:01:12]} 19. Rfxe1 {[%emt 0:00:31]} (19. axb4 $2 Nxg2 20. Kxg2 cxb3 $19) 19... Nd3 {[%emt 0:01:12]} 20. Red1 {[%emt 0:00:22]} Qd7 {[%emt 0:04:44]} 21. Qc2 {[%emt 0:03:12]} Rad8 {[%emt 0:08:10]} 22. Rab1 {[%emt 0:02:54]} Bd5 {[%emt 0:02:49]} 23. bxc4 {[%emt 0:02:07]} bxc4 {[%emt 0:00:15][%csl Oa3,Od4] White has weak pawns} 24. Nd2 {[%emt 0:00:14]} Qe6 $1 {[%emt 0:01:32]} 25. Kh2 {[%emt 0:11:30][%cal Od2c4] [#]} Bxg2 $2 {[%emt 0:05:18]} (25... f6 $1 $17 {[%cal Rf6e5] stays on course.} 26. Nxc4 Bxc4 27. exf6 Nxf2 (27... Bxf6 28. Bh3 $17) 28. Bxf2 Rxf6) 26. Kxg2 $16 {[%emt 0:00:07]} c5 {[%emt 0:00:30]} 27. Nxc4 {[%emt 0:00:26]} (27. Qxc4 cxd4 28. Qxd3 dxe3 29. Qxe3 Qxe5 $15) 27... cxd4 {[%emt 0:00:10] ...Qc6+ is the strong threat.} 28. Qxd3 {[%emt 0:00:16]} Rc8 {[%emt 0:00:12]} 29. Qxd4 {[%emt 0:01:20]} Rxc4 {[%emt 0:00:14]} 30. Qd5 {[%emt 0:00:56]} Bxe5 {[%emt 0:00:53]} 31. Qxe6 {[%emt 0:00:06]} (31. Bxa7 Qxd5+ 32. Rxd5 Bd6 $11) 31... fxe6 {[%emt 0:00:07]} 32. Rb7 {[%emt 0:00:10]} (32. Bxa7 Bd6 $11) 32... Kf7 {[%emt 0:01:26]} 33. Rdd7 {[%emt 0:00:54]} (33. Rxa7 Bb8 $16) 33... Bf6 {[%emt 0:00:27]} 34. Rxa7 {[%emt 0:00:10]} Rb8 {[%emt 0:00:34]} 35. a4 {[%emt 0:00:42][%cal Ba3a4,Ba4a5][%mdl 32]} Rb2 {[%emt 0:00:25]} 36. a5 {[%emt 0:01:06] a6 is the strong threat.} Rc3 {[%emt 0:00:39]} (36... Ra2 $1 $11) 37. Bd4 {[%emt 0:03:48]} (37. Rd2 $16 Rxd2 38. Bxd2) 37... Bxd4 $14 {[%emt 0:00:23]} 38. Rxd4 {[%emt 0:00:01][%mdl 4096] Endgame KRR-KRR} g5 {[%emt 0:00:31] Wards off Rf4+} (38... Rc5 $14) 39. Rdd7 $16 {[%emt 0:00:21]} Rcc2 {[%emt 0:00:15][%cal Of7f6]} 40. Rxe7+ {[%emt 0:00:14]} Kg6 {[%emt 0:00:06] [#]} 41. Rf7 {[%emt 0:01:18]} ({And not} 41. Rxh7 Rxf2+ 42. Kh3 Rh2+ 43. Kg4 Rb4+ 44. Kf3 g4+ (44... Rb3+ 45. Ke4 $11) 45. Ke3 Ra2 $11) (41. Rxe6+ Kf5 42. Re3 Rxf2+ 43. Kg1 Rg2+ 44. Kf1 Rh2 $15) (41. Rg7+ $1 $18 Kxh6 42. Rxh7+ Kg6 43. Rag7+ Kf5 44. Rf7+ Kg4 45. Rf3) 41... Ra2 {[%emt 0:01:06]} 42. Rf8 {[%emt 0:01:57] White is more active.} (42. Rxh7 Rxf2+ 43. Kh3 Rh2+ 44. Kg4 Ra4+ 45. Kf3 Kf5 $17) 42... Rc5 {[%emt 0:00:34]} 43. Re7 {[%emt 0:02:58]} ({Better is} 43. g4 $16 Rc4 44. Kg3 Rc3+ 45. Kh2) 43... Re5 $14 {[%emt 0:00:26]} 44. g4 {[%emt 0:07:04]} Re4 {[%emt 0:00:34]} 45. Kf3 {[%emt 0:01:14]} Re1 {[%emt 0:00:35][%mdl 8192]} (45... Raa4 $11) 46. Rg7+ {[%emt 0:00:31]} Kxh6 {[%emt 0:00:11]} 47. Rgg8 {[%emt 0:00:06][%cal Rf8f6] White mates.} Ra3+ {[%emt 0:00:45]} 48. Kg2 {[%emt 0:00:05][%cal Rf8f6]} Re4 {[%emt 0:00:35]} 49. Rf6# {[%emt 0:00:06] Weighted Error Value: White=0.16 (very precise) /Black=0.35  Loses game:     	---       	Black=2      Mistake:       	White=3     	Black=3      Inaccurate:     	White=7     	Black=3      OK:         	White=13    	Black=14     Best:        	White=4     	Black=6      Strong:       	---       	Black=1} 1-0

[Event "SixDays Budapest March GM A 2025"]
[Site "Budapest"]
[Date "2025.03.27"]
[Round "6.1"]
[White "Moldagali, Beksultan"]
[Black "Ostrovskiy, Aleksandr"]
[Result "1-0"]
[Annotator "TA"]
[ECO "C11"]
[WhiteElo "2398"]
[BlackElo "2394"]
[PlyCount "85"]
[EventDate "2025.03.23"]
[EventCountry "HUN"]
[SourceTitle "playchess.com"]
[Source "ChessBase"]
[SourceQuality "1"]
[TimeControl "5400+30"]

{[%evp 13,85,0,27,29,41,29,59,24,47,11,14,6,33,29,43,14,64,0,-2,-8,0,2,27,25,18,23,39,31,71,64,66,52,68,10,25,23,19,14,16,0,8,19,62,62,156,-233,-9,-269,0,0,0,0,53,42,54,54,60,60,118,75,125,105,560,569,533,247,257,263,558,149,29994,29995,29995,990]} 1. e4 {[%emt 0:00:03]} e6 {[%emt 0:07:10]} 2. d4 {[%emt 0:00:37]} d5 {[%emt 0:00:06]} 3. Nc3 {[%emt 0:05:41]} Nf6 {[%emt 0:00:51]} 4. e5 {[%emt 0:07:26]} Nfd7 {[%emt 0:00:26]} 5. f4 {[%emt 0:00:51]} c5 {[%emt 0:00:43]} 6. Nf3 {[%emt 0:00:02]} Nc6 {[%emt 0:00:07]} 7. Be3 {[%emt 0:00:05]} a6 {[%emt 0:05:00]} 8. Ne2 {[%emt 0:00:07] C11: French: Classical System: 4 e5 and 4 Bg5 dxe4.} b6 {[%emt 0:26:25]} 9. c3 {[%emt 0:06:20]} g6 {[%emt 0:03:14]} 10. g3 {[%emt 0:01:41] White is slightly better.} a5 {[%emt 0:04:40]} 11. Bh3 {[%emt 0:02:23]} Ba6 {[%emt 0:08:14]} 12. O-O {[%emt 0:01:48]} Be7 $146 {[%emt 0:05:17]} (12... a4 13. Rf2 a3 14. b3 Be7 15. Rc1 Rc8 16. Kh1 cxd4 17. Nexd4 Nc5 18. Nxc6 Rxc6 {0-1 Bortnyk,O (2605)-Nakamura,H (2775) Titled Tuesday intern op 09th May Late blitz 2023 (9)}) 13. Rf2 {[%emt 0:15:34]} Qc7 {[%emt 0:02:49]} 14. g4 {[%emt 0:10:59]} h5 {[%emt 0:05:57]} 15. Ng5 {[%emt 0:01:56]} (15. f5 $1 $14 hxg4 16. fxg6 gxh3 17. gxf7+ Kd8 18. Nf4) 15... hxg4 $11 {[%emt 0:05:54]} 16. Bxg4 {[%emt 0:00:02] A sharp opening} Bxg5 {[%emt 0:05:51]} 17. fxg5 {[%emt 0:00:01]} Ne7 {[%emt 0:00:29]} 18. Nf4 {[%emt 0:05:10]} O-O-O {[%emt 0:06:45]} 19. a3 {[%emt 0:03:48]} Qc6 {[%emt 0:06:00]} 20. b4 {[%emt 0:05:09]} Nf5 {[%emt 0:00:01]} 21. Bxf5 {[%emt 0:03:14]} (21. Qe1 {keeps more tension.} Rh7 22. a4 Bc4 23. Bxf5 gxf5 24. g6) 21... gxf5 {[%emt 0:02:21]} 22. bxc5 {[%emt 0:00:18]} bxc5 {[%emt 0:00:03]} 23. g6 {[%emt 0:00:03]} (23. Rg2 $14) 23... fxg6 $1 {[%emt 0:00:40]} 24. Nxg6 {[%emt 0:00:02]} Rh7 {[%emt 0:01:59] Against Ne7+. Black is weak on the dark squares} 25. Rb1 {[%emt 0:00:55]} Kc7 {[%emt 0:00:30]} 26. Rg2 {[%emt 0:00:35]} Rg8 {[%emt 0:00:36]} 27. h4 {[%emt 0:01:39]} Nf8 {[%emt 0:01:16]} 28. Nxf8 {[%emt 0:01:52]} Rxf8 {[%emt 0:00:01]} 29. Qb3 $2 {[%emt 0:00:01] White attacks White is more active.} (29. dxc5 $16 {stays on course. and Rb6 would now be decisive} Rb8 (29... Rxh4 $2 30. Rb6 $18) 30. Rxb8 Kxb8 31. Rg8+ Kc7 32. h5) 29... a4 $2 {[%emt 0:00:49]} (29... Rxh4 30. Rg7+ (30. dxc5 Rg4 $11) 30... Kd8 31. Bg5+ (31. dxc5 Rg4+ 32. Rxg4 fxg4 $18)) (29... Bd3 $19 {and ...c4 should not be overlooked} 30. Rbb2 a4 (30... Rxh4 31. Rg7+ Kd8 32. Qb8+ Qc8 33. Qd6+ Ke8 34. Re7#)) 30. Qb2 $2 {[%emt 0:00:08][%mdl 8192]} (30. Qc2 $11) 30... f4 $2 {[%emt 0:00:42]} (30... Rxh4 31. Rg7+ (31. dxc5 Rh7 $11) 31... Kd8 32. Bg5+ (32. dxc5 Rg4+ 33. Rxg4 fxg4 $18)) (30... Bd3 $19 31. Bh6 Rfh8 (31... Rxh6 32. Rg7+ Kd8 33. Qb8+ Qc8 34. Qd6+ Ke8 35. Re7#)) 31. Qc2 {[%emt 0:00:52]} Rhf7 {[%emt 0:00:19]} (31... Rxh4 $2 32. Bf2 Rh3 33. Rg7+ Kc8 34. Qb2 $18) 32. Bf2 {[%emt 0:01:11]} f3 {[%emt 0:00:10]} (32... cxd4 $1 $11 33. Qg6 (33. Bxd4 f3 $15) 33... Be2 (33... Qxc3 $2 34. Qxe6 Bb7 35. Qd6+ Kc8 36. Rb5 $18) (33... dxc3 34. Rb6 $16) 34. Bxd4 f3) 33. Rg4 $1 $14 {[%emt 0:00:02]} cxd4 {[%emt 0:00:53]} 34. Rxd4 {[%emt 0:00:02]} Rg8+ {[%emt 0:00:19]} 35. Kh1 {[%emt 0:00:05]} Bc4 {[%emt 0:00:12]} (35... Rg2 $14) 36. Qd2 {[%emt 0:00:48]} Rg2 {[%emt 0:00:34]} (36... Bb3 $142) 37. Rb4 {[%emt 0:00:44] [#] Really sharp!} Qa6 $2 {[%emt 0:01:02][%mdl 8192]} (37... Kc8 $16 {is more resistant.}) 38. Rf4 $18 {[%emt 0:00:42]} Rd7 {[%emt 0:00:28]} 39. Rxf3 {[%emt 0:00:19]} (39. Qd4 $142 {Threatening mate with Qc5+.} Bb5 40. Rxf3) 39... Rg4 {[%emt 0:00:30][%cal Od5d4]} 40. Bb6+ {[%emt 0:01:56]} Kc6 $2 {[%emt 0:00:16]} (40... Qxb6 41. Rxb6 (41. Rxa4 $2 Qg1#) 41... Rxh4+ 42. Kg2 Rdh7) 41. Qf2 $2 {[%emt 0:02:21]} (41. Qh6 $18 Re7 42. Rf8) 41... Rh7 $2 {[%emt 0:00:46][%mdl 8192] [#]} (41... d4 $16) 42. Qc5+ {[%emt 0:00:12]} Kb7 {[%emt 0:00:28]} 43. Bc7+ {[%emt 0:00:08] What a bad dream for Black.   Weighted Error Value: White=0.62/Black=0.67  Loses game:     	White=2     	Black=2      Missed win:     	White=1     	Black=2      Mistake:       	White=3     	Black=4      Inaccurate:     	White=4     	Black=5      OK:         	White=12    	Black=7      Best:        	White=4     	Black=2      Strong:       	White=1     	Black=1} (43. Ba5+ $142 Bb5 44. Rxb5+ Qxb5 45. Qxb5+ Ka7 46. Qb6+ Ka8 47. Rf8#) 1-0

[Event "SixDays Budapest March GM A 2025"]
[Site "Budapest"]
[Date "2025.03.27"]
[Round "6.2"]
[White "Rohrer, Christophe"]
[Black "Borgaonkar Akshay"]
[Result "0-1"]
[Annotator "TA"]
[ECO "B40"]
[WhiteElo "2266"]
[BlackElo "2418"]
[PlyCount "92"]
[EventDate "2025.03.23"]
[EventCountry "HUN"]
[SourceTitle "playchess.com"]
[Source "ChessBase"]
[SourceQuality "1"]
[TimeControl "5400+30"]

{[%evp 10,92,7,5,45,16,25,12,22,8,24,22,27,9,20,5,0,-4,-16,-8,-11,-11,-8,-21,-28,-58,-34,-54,-35,-79,-88,-98,-78,-83,-56,-106,-68,-88,-57,-82,-61,-93,-69,-246,-263,-262,-24,-13,13,0,0,0,0,0,0,0,0,-24,-15,-90,-80,-102,-90,-85,-99,-399,-297,-314,-287,-310,-300,-284,-266,-332,-324,-395,-275,-241,-241,-608,-608,-601,-590,-29990,-1511]} 1. e4 {[%emt 0:00:04]} c5 {[%emt 0:00:32]} 2. Nf3 {[%emt 0:00:07]} e6 {[%emt 0:00:07]} 3. Nc3 {[%emt 0:00:14]} Nc6 {[%emt 0:00:16]} 4. Bb5 {[%emt 0:00:12]} Nd4 {[%emt 0:00:22]} 5. O-O {[%emt 0:00:23]} a6 {[%emt 0:00:20]} 6. Bd3 {[%emt 0:00:24]} Nc6 {[%emt 0:00:28] B30: Sicilian: 2...Nc6 3 Bb5, lines without ...g6.} 7. b3 {[%emt 0:00:28]} d6 {[%emt 0:04:04]} 8. Bb2 {[%emt 0:00:22]} Nf6 {[%emt 0:01:53] The position is equal.} 9. Re1 {[%emt 0:01:37]} e5 {[%emt 0:03:52]} 10. Nd5 {[%emt 0:02:29]} g6 {[%emt 0:04:03]} 11. Bc4 {[%emt 0:07:25]} Bg7 {[%emt 0:02:50]} 12. c3 {[%emt 0:02:50]} O-O {[%emt 0:13:30]} 13. h3 {[%emt 0:06:25] The position is symmetric and equal} Nxd5 {[%emt 0:09:41]} 14. Bxd5 {[%emt 0:01:34]} Ne7 {[%emt 0:05:12]} 15. Bc4 $146 {[%emt 0:01:20]} ({Predecessor:} 15. d4 Nxd5 16. exd5 exd4 17. cxd4 b6 18. Qd2 Bb7 19. Rad1 Rc8 20. dxc5 Rxc5 21. Bxg7 Kxg7 {½-½ Louis,T (2316)-Johansson,G (2210) Rilton Cup 46th 2016 (3)}) 15... b5 {[%emt 0:01:34]} 16. Bf1 {[%emt 0:03:56]} f5 {[%emt 0:02:33]} 17. exf5 {[%emt 0:11:05]} gxf5 {[%emt 0:01:24]} 18. c4 {[%emt 0:03:04]} Ng6 {[%emt 0:07:17]} 19. d3 {[%emt 0:06:10]} Bb7 {[%emt 0:03:01]} 20. g3 {[%emt 0:01:55]} Rf7 {[%emt 0:00:58]} 21. Rb1 {[%emt 0:04:35]} Bf6 {[%emt 0:05:50]} 22. Kh2 {[%emt 0:02:16]} ({White should try} 22. Bg2 $15) 22... Qf8 {[%emt 0:03:25]} 23. Bc1 {[%emt 0:01:32]} e4 {[%emt 0:01:19]} (23... f4 {looks sharper.} 24. Bg2 Qc8 25. Bb2 Qd7) 24. Ng5 {[%emt 0:04:01]} Bxg5 {[%emt 0:01:28]} 25. Bxg5 {[%emt 0:00:07]} Ne5 {[%emt 0:00:14]} 26. Be2 {[%emt 0:01:47] [#]} (26. dxe4 $2 fxe4 27. Be3 Rxf2+ 28. Kh1 Rf3 $19 (28... Rxa2 $2 29. Bg2 $19)) (26. Re3 $1 $15) 26... f4 $1 $19 {[%emt 0:01:46][%mdl 512]} 27. Rg1 {[%emt 0:04:23]} f3 {[%emt 0:07:01]} (27... fxg3+ $19 28. Rxg3 Ng6 (28... Rxf2+ 29. Kg1 $17)) 28. Bf1 $11 {[%emt 0:00:49]} Rf5 {[%emt 0:00:15]} 29. Bf4 {[%emt 0:04:15]} Rh5 {[%emt 0:02:44]} 30. Bxe5 {[%emt 0:02:47]} dxe5 {[%emt 0:00:10]} 31. dxe4 {[%emt 0:01:32]} Rd8 {[%emt 0:01:56] Prevents Qd7.} 32. Qc1 {[%emt 0:03:59]} Bxe4 {[%emt 0:01:45]} 33. Rb2 {[%emt 0:00:34]} b4 {[%emt 0:01:17]} 34. g4 {[%emt 0:00:49]} (34. h4 $11 {keeps the balance.}) 34... Rh6 $17 {[%emt 0:00:09] Black is much more active.} 35. Qg5+ {[%emt 0:00:10]} Rg6 {[%emt 0:00:14]} 36. Qxe5 {[%emt 0:00:15] [#]} Qd6 $1 $36 {[%emt 0:00:25][%mdl 2048] Black is in control.} 37. Qg3 {[%emt 0:01:47][%mdl 8192]} (37. Qxd6 $17 {was the only chance.} Rgxd6 38. h4) 37... Qd4 {[%emt 0:01:45]} 38. Qf4 {[%emt 0:00:42]} Qxb2 {[%emt 0:00:31]} 39. Qxe4 {[%emt 0:00:07]} Qxf2+ {[%emt 0:00:13]} 40. Kh1 {[%emt 0:00:04]} Rf8 {[%emt 0:02:48][%cal Og6d6] And now ...Rd6! would win.} ({Much less strong is} 40... Qxa2 41. Qxf3 Qb2 42. Bg2 $19) 41. Qd5+ {[%emt 0:00:33]} Kh8 {[%emt 0:00:22][%cal Of2e3]} 42. Bd3 {[%emt 0:00:57]} Qh4 {[%emt 0:00:46][%cal Rh4h3]} 43. Kh2 {[%emt 0:01:04]} f2 {[%emt 0:00:29]} 44. Rf1 {[%emt 0:00:14]} (44. Qe5+ Qf6 45. Qxf6+ Rgxf6 46. Rf1) 44... Rxg4 $19 {[%emt 0:00:52] ( -> ...Qg3+)} 45. Qe5+ {[%emt 0:00:29]} Rg7 {[%emt 0:00:06]} 46. Bf5 {[%emt 0:00:26]} Qg5 {[%emt 0:00:15] Weighted Error Value: White=0.68/Black=0.24 (precise)   Loses game:     	White=2     	---        Missed win:     	---       	Black=1      Mistake:       	White=3     	---        Inaccurate:     	White=4     	Black=5      OK:         	White=12    	Black=19     Best:        	White=3     	Black=3      Strong:       	---       	Black=1} (46... Rxf5 $142 47. Qe3 Qd8 48. Qe4 Qb8+ 49. Kh1 Qg3 (49... Rfg5 {is a self mate.} 50. Qg4 Rxg4 51. hxg4 Qg3 52. Rxf2 Qh3+ 53. Kg1 Rxg4+ 54. Rg2 Qxg2#) 50. Qe8+ Rg8 51. Qxg8+ Kxg8 52. Rxf2 Rxf2 53. a4 Qh2#) 0-1

[Event "SixDays Budapest March GM A 2025"]
[Site "Budapest"]
[Date "2025.03.27"]
[Round "6.3"]
[White "Pap, Misa"]
[Black "Aczel, Gergely"]
[Result "1/2-1/2"]
[Annotator "TA"]
[ECO "B22"]
[WhiteElo "2457"]
[BlackElo "2487"]
[PlyCount "37"]
[EventDate "2025.03.23"]
[EventCountry "HUN"]
[SourceTitle "playchess.com"]
[Source "ChessBase"]
[SourceQuality "1"]
[TimeControl "5400+30"]

{[%evp 12,19,29,20,18,25,24,9,23,10]} 1. e4 {[%emt 0:00:03]} c5 {[%emt 0:00:04]} 2. c3 {[%emt 0:00:04]} d5 {[%emt 0:00:07]} 3. exd5 {[%emt 0:00:03]} Qxd5 {[%emt 0:00:03]} 4. d4 {[%emt 0:00:04]} e6 {[%emt 0:00:04]} 5. Nf3 {[%emt 0:00:03]} Nf6 {[%emt 0:00:04]} 6. Be3 {[%emt 0:00:05]} cxd4 {[%emt 0:00:03]} 7. cxd4 {[%emt 0:00:04]} Be7 {[%emt 0:00:06] B22: Sicilian: 2 c3.} 8. Nc3 {[%emt 0:00:04]} Qd6 {[%emt 0:00:11]} 9. Bc4 {[%emt 0:00:05]} O-O {[%emt 0:00:26]} 10. O-O {[%emt 0:00:07] An uneventful encounter.   Weighted Error Value: White=0.07 (flawless) /Black=0.00 (flawless)   OK:         	White=2     	Black=2} Nc6 $146 11. a3 Rd8 12. Qe2 Bf8 13. Rad1 Nd5 14. Bg5 f6 15. Bc1 b6 16. Rfe1 Nce7 17. Bd3 Bd7 18. Qe4 Ng6 19. h4 {0-1 Bortnyk,O (2604)-Nakamura,H (2736) Titled Tuesday intern op 12th Oct blitz 2021 (10)} 1/2-1/2

[Event "SixDays Budapest March GM A 2025"]
[Site "Budapest"]
[Date "2025.03.27"]
[Round "6.4"]
[White "Uskov, Artem"]
[Black "Berczes, David"]
[Result "1/2-1/2"]
[Annotator "TA"]
[ECO "E07"]
[WhiteElo "2461"]
[BlackElo "2408"]
[PlyCount "51"]
[EventDate "2025.03.23"]
[EventCountry "HUN"]
[SourceTitle "playchess.com"]
[Source "ChessBase"]
[SourceQuality "1"]
[TimeControl "5400+30"]

{[%evp 14,51,23,22,35,32,33,60,36,46,60,54,52,40,59,21,42,18,25,18,25,0,17,15,14,12,17,17,17,17,7,0,20,20,11,-6,18,16,27,18]} 1. Nf3 {[%emt 0:13:54]} d5 {[%emt 0:00:09]} 2. g3 {[%emt 0:00:07]} Nf6 {[%emt 0:00:07]} 3. Bg2 {[%emt 0:00:04]} e6 {[%emt 0:00:04]} 4. O-O {[%emt 0:00:24]} Be7 5. d4 {[%emt 0:00:07]} O-O {[%emt 0:00:09]} 6. c4 {[%emt 0:00:04]} c6 {[%emt 0:00:04]} 7. Nc3 {[%emt 0:00:34]} Nbd7 {[%emt 0:00:16][%cal Bb8d7,Bd7c5,Bc5d3][%mdl 32] 7...a5 is more advanced technology.} 8. Qd3 {[%emt 0:02:13]} a5 {[%emt 0:00:35] E07: Closed Catalan: Main Line (5 Nf3 0-0 6 0-0 Nbd7).} 9. e4 {[%emt 0:18:34]} dxe4 {[%emt 0:01:09]} 10. Nxe4 {[%emt 0:00:08]} e5 $146 {[%emt 0:02:43] White is slightly better.} ({Predecessor:} 10... Nxe4 11. Qxe4 a4 12. Bf4 Qa5 13. Rad1 Rd8 14. a3 Nf6 15. Qe2 Bd7 16. Ne5 Be8 17. Rfe1 Rac8 18. g4 g6 19. Bg5 {1-0 Srihari,L (2431)-Masic,P (2242) Novi Sad Serbia op-A 2022 (4)}) 11. dxe5 {[%emt 0:05:45]} Nxe4 {[%emt 0:04:52]} 12. Qxe4 {[%emt 0:00:11]} Nc5 {[%emt 0:00:05]} 13. Qe3 {[%emt 0:02:27]} Qd3 {[%emt 0:00:07]} 14. b3 {[%emt 0:02:49]} Rd8 {[%emt 0:02:01]} 15. Qxd3 {[%emt 0:02:04]} Nxd3 {[%emt 0:00:31]} 16. Be3 {[%emt 0:00:18]} Bg4 {[%emt 0:03:28]} 17. Rad1 {[%emt 0:03:10]} Bc5 {[%emt 0:32:15]} 18. Bxc5 {[%emt 0:02:59]} Nxc5 {[%emt 0:00:06]} 19. h3 {[%emt 0:00:28]} Bxf3 {[%emt 0:00:47]} 20. Bxf3 {[%emt 0:00:23]} Nd3 {[%emt 0:06:10] [#]} 21. e6 $1 {[%emt 0:00:34]} fxe6 {[%emt 0:00:48]} 22. Be4 {[%emt 0:01:46]} Nc5 {[%emt 0:01:45]} 23. Bc2 {[%emt 0:00:12]} Kf7 {[%emt 0:06:44]} 24. Kg2 {[%emt 0:02:46]} (24. Bxh7 $2 {is the wrong capture.} g6 25. Rfe1 Kg7 26. Bxg6 (26. Rxd8 $2 Rxd8 27. a3 Rd4 $19) 26... Kxg6 $17) 24... h6 {[%emt 0:01:46]} 25. Kf3 {[%emt 0:01:36]} e5 {[%emt 0:02:14]} 26. Rxd8 {[%emt 0:01:11] Weighted Error Value: White=0.08 (flawless) /Black=0.08 (flawless)   Inaccurate:     	White=1     	---        OK:         	White=8     	Black=6      Best:        	---       	Black=2} 1/2-1/2